[Event "Vienna Championship-B 2022"]
[Site "Vienna"]
[Date "2022.09.25"]
[Round "9.8"]
[White "Stadlinger, Lukas"]
[Black "Schwabeneder, Alois"]
[Result "1-0"]
[ECO "D00"]
[WhiteElo "1729"]
[BlackElo "1911"]
[Annotator "TA"]
[PlyCount "51"]
[EventDate "2022.09.17"]
[EventType "swiss"]
[EventCountry "AUT"]
[SourceTitle "playchess.com"]
[Source "ChessBase"]
[SourceQuality "1"]
[TimeControl "5400+30"]

{[%evp 9,51,19,60,52,52,52,56,55,61,48,56,57,57,56,64,40,112,96,107,125,236,243,262,272,339,329,752,741,665,664,1622,814,763,735,5669,5669,5627,5581,6391,5522,29978,29976,5900,2686]} 1. d4 {[%emt 0:00:20]} Nf6 {[%emt 0:00:13]} 2. Nc3 {[%emt 0:00:16]} d5 {[%emt 0:00:41]} 3. Bf4 {[%emt 0:00:09]} c6 {[%emt 0:01:10]} 4. e3 {[%emt 0:00:31]} Bg4 {[%emt 0:00:46]} 5. f3 {[%emt 0:02:09]} Bh5 {[%emt 0:05:25]} 6. g4 {[%emt 0:00:34] D00: 1 d4 d5: Unusual lines.} Bg6 {[%emt 0:00:03]} 7. h4 {[%emt 0:00:04] Black must now prevent h5.} h6 {[%emt 0:00:51]} 8. Bd3 {[%emt 0:02:40] White is slightly better.} Bxd3 {[%emt 0:00:11]} 9. Qxd3 {[%emt 0:00:03]} e6 {[%emt 0:00:45]} 10. O-O-O {[%emt 0:03:16]} Nbd7 {[%emt 0:03:06]} 11. Nge2 $36 {[%emt 0:01:03][%mdl 2048] White has good play.} b5 {[%emt 0:02:15]} 12. Ng3 {[%emt 0:02:09] [#]} a5 $146 {[%emt 0:00:45]} ({Black should try} 12... b4 $14) ({Predecessor:} 12... Nb6 13. g5 Nfd7 14. g6 Qf6 15. h5 Nc4 16. gxf7+ Qxf7 17. Nge2 b4 {1-0 (41) Martynov,P (2380)-Kharmunova,N (2132) Stockholm 2015}) 13. g5 $16 {[%emt 0:00:29]} Ng8 {[%emt 0:00:48]} 14. e4 {[%emt 0:03:17][%cal Be3e4,Be4d5][%mdl 32] Threatens to win with exd5. White has more active pieces.} b4 {[%emt 0:05:00] [#]} (14... hxg5 $16 15. hxg5 Rxh1 16. Rxh1 Nb6) 15. exd5 $1 $18 {[%emt 0:10:34]} bxc3 {[%emt 0:03:11] [#]} 16. dxe6 $1 {[%emt 0:00:08]} (16. dxc6 Nb6 17. Qb5 (17. Qxc3 Nd5 $17) (17. bxc3 $2 Qd5 $19) 17... Bd6 18. Bxd6 Qxd6 19. Qxb6 Qxg3 $11) 16... cxb2+ {[%emt 0:01:02]} 17. Kb1 {[%emt 0:00:02] Really sharp!} hxg5 $2 {[%emt 0:05:35]} (17... Ne7 18. exd7+ Qxd7 19. gxh6 (19. Kxb2 hxg5 20. hxg5 Rxh1 $16) 19... Nd5) 18. exf7+ {[%emt 0:12:02]} ({Weaker is} 18. exd7+ Qxd7 19. hxg5 Rxh1 20. Rxh1 Ne7 21. Kxb2 Nd5 $16) 18... Kxf7 {[%emt 0:01:08]} 19. Qc4+ {[%emt 0:01:05]} Kg6 {[%emt 0:00:27]} 20. hxg5 {[%emt 0:08:47]} Rxh1 {[%emt 0:01:20]} 21. Rxh1 {[%emt 0:00:20]} Ne7 {[%emt 0:03:26]} 22. Qe6+ {[%emt 0:10:21]} Nf6 {[%emt 0:01:05]} 23. gxf6 {[%emt 0:00:05][%csl Ge6][%cal Rf6e7]} Qd5 {[%emt 0:01:01]} 24. Qg4+ {[%emt 0:03:30]} Kxf6 {[%emt 0:00:40]} 25. Ne4+ {[%emt 0:00:26]} Kf7 {[%emt 0:01:29]} 26. Nd6+ {[%emt 0:00:08] Weighted Error Value: White=0.04 (flawless) /Black=0.32} 1-0

[Event "Vienna Championship-B 2022"]
[Site "Vienna"]
[Date "2022.09.25"]
[Round "9.9"]
[White "Marinovic, Sara"]
[Black "Krejcar, Walter"]
[Result "0-1"]
[ECO "B33"]
[WhiteElo "1384"]
[BlackElo "1770"]
[Annotator "NA RC COMBH"]
[PlyCount "116"]
[EventDate "2022.09.17"]
[EventType "swiss"]
[EventCountry "AUT"]
[SourceTitle "playchess.com"]
[Source "ChessBase"]
[SourceQuality "1"]
[TimeControl "5400+30"]

1. e4 {[%emt 0:00:02]} c5 {[%emt 0:18:07]} 2. Nf3 {[%emt 0:00:11]} Nc6 {[%emt 0:00:49]} 3. d4 {[%emt 0:00:12]} cxd4 {[%emt 0:00:15]} 4. Nxd4 {[%emt 0:00:08]} e5 {[%emt 0:00:06]} 5. Nb5 {[%emt 0:00:17]} d6 {[%emt 0:03:52]} 6. N1c3 {[%emt 0:00:11]} a6 {[%emt 0:00:08]} 7. Na3 {[%emt 0:00:07]} Nf6 {[%emt 0:01:22]} 8. Bg5 {[%emt 0:00:17]} Be7 {[%emt 0:00:14]} 9. Bxf6 {[%emt 0:00:19]} Bxf6 {[%emt 0:00:22]} 10. Nd5 {[%emt 0:00:23]} b5 {[%emt 0:04:41]} 11. c3 {[%emt 0:00:24]} Bg5 {[%emt 0:03:09]} 12. Nc2 {[%emt 0:05:52]} O-O {[%emt 0:00:45]} 13. g3 {[%emt 0:00:36]} Ra7 {[%emt 0:03:01]} 14. Bg2 {[%emt 0:03:22]} Be6 {[%emt 0:01:42]} 15. Nce3 {[%emt 0:01:37]} Bxe3 {[%emt 0:03:24]} 16. Nxe3 {[%emt 0:00:27]} Ne7 {[%emt 0:00:23]} 17. O-O {[%emt 0:00:57]} Rd7 {[%emt 0:01:34]} 18. Qh5 {[%emt 0:24:51]} Kh8 {[%emt 0:03:59]} 19. Rfd1 {[%emt 0:04:02]} g6 {[%emt 0:00:25]} 20. Qe2 {[%emt 0:00:10]} Kg7 {[%emt 0:00:47]} 21. Rd2 {[%emt 0:06:53]} h5 {[%emt 0:01:31]} 22. h4 {[%emt 0:01:07]} f5 {[%emt 0:03:52]} 23. exf5 {[%emt 0:03:26]} Nxf5 {[%emt 0:00:45]} 24. Nxf5+ {[%emt 0:04:32]} Bxf5 {[%emt 0:01:08]} 25. a4 {[%emt 0:03:48]} Qb6 {[%emt 0:00:37]} 26. axb5 {[%emt 0:03:23]} axb5 {[%emt 0:00:08]} 27. Bf1 {[%emt 0:02:47]} Rb7 {[%emt 0:01:57]} 28. Rd5 {[%emt 0:08:49]} Bd7 {[%emt 0:02:55]} 29. b4 {[%emt 0:06:33]} Rc7 {[%emt 0:01:21]} 30. Qd2 {[%emt 0:00:28]} Rf6 {[%emt 0:01:57]} 31. Rd1 {[%emt 0:01:07]} Rf3 {[%emt 0:07:25]} 32. Rd3 {[%emt 0:06:37]} Bg4 {[%emt 0:03:35]} 33. Rxf3 {[%emt 0:01:16]} Bxf3 {[%emt 0:00:08]} 34. Qxd6 {[%emt 0:00:23]} Qxd6 {[%emt 0:00:25]} 35. Rxd6 {[%emt 0:00:08]} Rxc3 {[%emt 0:00:12]} 36. Re6 {[%emt 0:02:33]} e4 {[%emt 0:00:29]} 37. Bxb5 {[%emt 0:00:40]} Rc1+ {[%emt 0:00:09]} 38. Bf1 {[%emt 0:00:08]} Be2 {[%emt 0:00:22]} 39. Rxe4 {[%emt 0:00:30]} Bxf1 {[%emt 0:00:08]} 40. Re3 {[%emt 0:00:33]} Bb5+ {[%emt 0:00:52]} 41. Kg2 {[%emt 0:00:13]} Rb1 {[%emt 0:00:32]} 42. Re7+ {[%emt 0:00:32]} Kf6 {[%emt 0:00:19]} 43. Re3 {[%emt 0:00:24]} Rxb4 {[%emt 0:00:26]} 44. Rf3+ {[%emt 0:00:26]} Ke5 {[%emt 0:00:30]} 45. Re3+ {[%emt 0:00:45]} Kd6 {[%emt 0:01:34]} 46. Ra3 {[%emt 0:00:39]} Bc6+ {[%emt 0:00:19]} 47. Kf1 {[%emt 0:00:46]} Rb2 {[%emt 0:01:34]} 48. Ra5 {[%emt 0:00:59]} Bf3 {[%emt 0:01:00]} 49. Ke1 {[%emt 0:00:18]} Ke6 {[%emt 0:02:46]} 50. Rg5 {[%emt 0:00:49]} Kf6 {[%emt 0:06:05]} 51. Ra5 {[%emt 0:00:38]} Be4 {[%emt 0:00:44]} 52. Rc5 {[%emt 0:00:43]} Bd3 {[%emt 0:01:24]} 53. Rc8 {[%emt 0:00:39]} Kf5 {[%emt 0:00:41]} 54. Rf8+ {[%emt 0:01:03]} Kg4 {[%emt 0:00:56]} 55. Rf4+ {[%emt 0:00:29]} Kh3 {[%emt 0:00:14]} 56. Rd4 {[%emt 0:00:34]} Bf5 {[%emt 0:00:30]} 57. Ra4 {[%emt 0:00:38]} Kg2 {[%emt 0:00:52]} 58. Rf4 {[%emt 0:01:04]} Ra2 {[%emt 0:00:52]} 0-1

[Event "Vienna Championship-B 2022"]
[Site "Vienna"]
[Date "2022.09.25"]
[Round "9.10"]
[White "Pantelic, Slobodan"]
[Black "Reif, Werner"]
[Result "0-1"]
[ECO "D02"]
[WhiteElo "1596"]
[BlackElo "1747"]
[Annotator "NA RC COMBH"]
[PlyCount "102"]
[EventDate "2022.09.17"]
[EventType "swiss"]
[EventCountry "AUT"]
[SourceTitle "playchess.com"]
[Source "ChessBase"]
[SourceQuality "1"]
[TimeControl "5400+30"]

1. Nf3 {[%emt 0:00:07]} d5 {[%emt 0:00:05]} 2. d4 {[%emt 0:00:06]} Nf6 {[%emt 0:00:05]} 3. Bf4 {[%emt 0:00:04]} e6 {[%emt 0:00:22]} 4. h3 {[%emt 0:00:18]} Bd6 {[%emt 0:01:05]} 5. Ne5 {[%emt 0:00:09]} c5 {[%emt 0:00:14]} 6. c3 {[%emt 0:00:03]} Nc6 {[%emt 0:00:20]} 7. e3 {[%emt 0:00:03]} Qc7 {[%emt 0:00:52]} 8. Bb5 {[%emt 0:00:04]} O-O {[%emt 0:00:12]} 9. Nd3 {[%emt 0:00:13]} c4 {[%emt 0:01:03]} 10. Bxd6 {[%emt 0:00:09]} Qxd6 {[%emt 0:00:04]} 11. Nf4 {[%emt 0:00:54]} a6 {[%emt 0:02:37]} 12. Ba4 {[%emt 0:00:07]} b5 {[%emt 0:00:11]} 13. Bc2 {[%emt 0:00:09]} Bb7 {[%emt 0:01:41]} 14. O-O {[%emt 0:00:14]} a5 {[%emt 0:05:07]} 15. Nd2 {[%emt 0:00:02]} Ne7 {[%emt 0:04:25]} 16. Nf3 {[%emt 0:00:06]} Ne4 {[%emt 0:09:58]} 17. Ne5 {[%emt 0:01:06]} f6 {[%emt 0:01:41]} 18. Ng4 {[%emt 0:00:44]} Rad8 {[%emt 0:02:06]} 19. Nh2 {[%emt 0:00:52]} e5 {[%emt 0:02:26]} 20. Ne2 {[%emt 0:00:22]} Ng5 {[%emt 0:07:48]} 21. Ng3 {[%emt 0:02:30]} e4 {[%emt 0:02:24]} 22. h4 {[%emt 0:01:01]} Nf7 {[%emt 0:01:43]} 23. Qg4 {[%emt 0:00:33]} Bc8 {[%emt 0:01:05]} 24. Qe2 {[%emt 0:00:52]} Nh6 {[%emt 0:01:48]} 25. Bd1 {[%emt 0:00:08]} Nef5 {[%emt 0:02:04]} 26. Nxf5 {[%emt 0:00:18]} Nxf5 {[%emt 0:02:42]} 27. h5 {[%emt 0:01:09]} Nh6 {[%emt 0:00:48]} 28. Qd2 {[%emt 0:00:50]} f5 {[%emt 0:05:56]} 29. f4 {[%emt 0:00:06]} Qf6 {[%emt 0:03:48]} 30. Qf2 {[%emt 0:00:08]} g5 {[%emt 0:08:42]} 31. hxg6 {[%emt 0:00:03]} hxg6 {[%emt 0:00:10]} 32. Kh1 {[%emt 0:00:02]} Kg7 {[%emt 0:00:17]} 33. Rg1 {[%emt 1:33:28]} Rh8 {[%emt 0:33:11]} 34. g4 {[%emt 0:00:00]} fxg4 {[%emt 0:00:00]} 35. Bxg4 {[%emt 0:00:00]} Nxg4 {[%emt 0:00:00]} 36. Rxg4 {[%emt 0:00:00]} Bxg4 {[%emt 0:00:00]} 37. Kg1 {[%emt 0:00:00]} Rh4 {[%emt 0:00:00]} 38. Qg3 {[%emt 0:00:00]} Bf5 {[%emt 0:00:00]} 39. Rf1 {[%emt 0:00:00]} Rdh8 {[%emt 0:00:00]} 40. Rf2 {[%emt 0:00:00]} Rh3 {[%emt 0:00:00]} 41. Qg2 {[%emt 0:00:00]} Qh4 {[%emt 0:00:00]} 42. Qg5 {[%emt 0:00:00]} Qxg5+ {[%emt 0:00:00]} 43. fxg5 {[%emt 0:00:00]} Rxe3 {[%emt 0:00:00]} 44. Nf1 {[%emt 0:00:00]} Rd3 {[%emt 0:00:00]} 45. Nd2 {[%emt 0:00:00]} Rg3+ {[%emt 0:00:00]} 46. Rg2 {[%emt 0:00:00]} Rxg2+ {[%emt 0:00:00]} 47. Kxg2 {[%emt 0:00:00]} Rh5 {[%emt 0:00:00]} 48. Kg3 {[%emt 0:00:00]} Rxg5+ {[%emt 0:00:00]} 49. Kf4 {[%emt 0:00:00]} Rg4+ {[%emt 0:00:00]} 50. Ke5 {[%emt 0:00:00]} e3 {[%emt 0:00:00]} 51. Nf3 {[%emt 0:00:00]} Be4 {[%emt 0:09:00]} 0-1

[Event "Vienna Championship-B 2022"]
[Site "Vienna"]
[Date "2022.09.25"]
[Round "9.12"]
[White "Iehl, William"]
[Black "Kunschek, Horst"]
[Result "0-1"]
[ECO "D07"]
[WhiteElo "1781"]
[BlackElo "1743"]
[Annotator "NA RC COMBH"]
[PlyCount "28"]
[EventDate "2022.09.17"]
[EventType "swiss"]
[EventCountry "AUT"]
[SourceTitle "playchess.com"]
[Source "ChessBase"]
[SourceQuality "1"]
[TimeControl "5400+30"]

1. Nf3 {[%emt 0:00:02]} Nc6 {[%emt 0:07:28]} 2. d4 {[%emt 0:00:04]} d5 {[%emt 0:00:09]} 3. c4 {[%emt 0:00:02]} Bg4 {[%emt 0:00:11]} 4. cxd5 {[%emt 0:00:18]} Bxf3 {[%emt 0:00:12]} 5. gxf3 {[%emt 0:00:33]} Qxd5 {[%emt 0:00:17]} 6. e3 {[%emt 0:00:19]} e5 {[%emt 0:00:11]} 7. Nc3 {[%emt 0:00:03]} Bb4 {[%emt 0:00:21]} 8. Bd2 {[%emt 0:00:16]} Bxc3 {[%emt 0:00:02]} 9. Bxc3 {[%emt 0:00:01]} exd4 {[%emt 0:00:37]} 10. exd4 {[%emt 0:00:31]} O-O-O {[%emt 0:00:20]} 11. Qd3 {[%emt 0:01:40]} Nf6 {[%emt 0:01:27]} 12. Rg1 {[%emt 0:00:12]} Rhe8+ {[%emt 0:00:36]} 13. Be2 {[%emt 0:00:01]} Nxd4 {[%emt 0:00:40]} 14. O-O-O {[%emt 0:00:13]} Nxe2+ {[%emt 0:00:44]} 0-1